[Event "1st Regina Cattolica Open 2019"]
[Site "Cattolica"]
[Date "2019.06.15"]
[Round "1.11"]
[White "Malfagia, Andrea"]
[Black "Aimi, Luca"]
[Result "0-1"]
[ECO "D34"]
[WhiteElo "2191"]
[BlackElo "1942"]
[Annotator "RC"]
[PlyCount "158"]
[EventDate "2019.06.14"]
[EventType "swiss"]
[EventCountry "ITA"]
[SourceTitle "playchess.com"]
[Source "ChessBase"]
[SourceQuality "1"]
[TimeControl "5400+30"]

1. d4 {[%emt 0:00:00]} e6 {[%emt 0:00:00]} 2. c4 {[%emt 0:00:00]} d5 {[%emt 0:00:00]} 3. Nc3 {[%emt 0:00:00]} c5 {[%emt 0:06:49]} 4. cxd5 {[%emt 0:00:02]} exd5 {[%emt 0:00:12]} 5. Nf3 {[%emt 0:00:08]} Nc6 {[%emt 0:00:23]} 6. g3 {[%emt 0:00:05]} Nf6 {[%emt 0:00:19]} 7. Bg2 {[%emt 0:00:05]} Be7 {[%emt 0:00:22]} 8. O-O {[%emt 0:00:07]} O-O {[%emt 0:00:12]} 9. Bg5 {[%emt 0:00:25]} c4 {[%emt 0:08:24]} 10. Ne5 {[%emt 0:12:08]} Be6 {[%emt 0:00:25]} 11. f4 {[%emt 0:00:12]} Qc8 {[%emt 0:26:54]} 12. Bxf6 {[%emt 0:11:24]} gxf6 {[%emt 0:01:34]} 13. Nxc6 {[%emt 0:00:52]} bxc6 {[%emt 0:00:18]} 14. e3 {[%emt 0:08:34]} Rb8 {[%emt 0:13:11]} 15. Rf2 {[%emt 0:00:16]} f5 {[%emt 0:09:27]} 16. Qh5 {[%emt 0:02:11]} Kh8 {[%emt 0:06:28]} 17. Kh1 {[%emt 0:03:02]} Rg8 {[%emt 0:00:16]} 18. Rd1 {[%emt 0:04:58]} Qf8 {[%emt 0:00:26]} 19. Bh3 {[%emt 0:00:42]} Qc8 {[%emt 0:02:30]} 20. Rc2 {[%emt 0:01:09]} Rg6 {[%emt 0:01:53]} 21. Ne2 {[%emt 0:03:53]} Bf8 {[%emt 0:00:45]} 22. Ng1 {[%emt 0:00:08]} Rh6 {[%emt 0:01:06]} 23. Qe2 {[%emt 0:00:08]} Qa6 {[%emt 0:01:21]} 24. b3 {[%emt 0:01:18]} Qa3 {[%emt 0:02:18]} 25. bxc4 {[%emt 0:02:05]} dxc4 {[%emt 0:00:39]} 26. Bg2 {[%emt 0:02:44]} Bd5 {[%emt 0:01:31]} 27. Bxd5 {[%emt 0:14:07]} cxd5 {[%emt 0:00:13]} 28. Nf3 {[%emt 0:02:12]} Re6 {[%emt 0:03:18]} 29. Ng5 {[%emt 0:00:55]} Re7 {[%emt 0:03:31]} 30. Qh5 {[%emt 0:11:35]} f6 {[%emt 0:00:38]} 31. Nf7+ {[%emt 0:00:30]} Kg8 {[%emt 0:01:19]} 32. Qxf5 {[%emt 0:00:25]} Kxf7 {[%emt 0:02:39]} 33. Qxd5+ {[%emt 0:00:36]} Kg7 {[%emt 0:00:24]} 34. Qxc4 {[%emt 0:14:42]} Qxe3 {[%emt 0:00:17]} 35. Rg2 {[%emt 0:00:10]} Qe4 {[%emt 0:01:46]} 36. Qc1 {[%emt 0:00:39]} Reb7 {[%emt 0:01:09]} 37. Re1 {[%emt 0:05:20]} Qxd4 {[%emt 0:00:16]} 38. Qc6 {[%emt 0:00:38]} Qc5 {[%emt 0:01:18]} 39. Qf3 {[%emt 0:00:07]} Rb1 {[%emt 0:00:45]} 40. Reg1 {[%emt 0:00:26]} Rxg1+ {[%emt 0:01:27]} 41. Rxg1 {[%emt 0:00:02]} Rd8 {[%emt 0:00:48]} 42. Rb1 {[%emt 0:00:15]} Re8 {[%emt 0:01:27]} 43. h4 {[%emt 0:00:54]} Qf5 {[%emt 0:01:05]} 44. Rb7+ {[%emt 0:01:01]} Kh8 {[%emt 0:01:12]} 45. Kg2 {[%emt 0:00:06]} Qc2+ {[%emt 0:00:15]} 46. Kh3 {[%emt 0:00:09]} Qc8+ {[%emt 0:00:22]} 47. f5 {[%emt 0:00:09]} Re7 {[%emt 0:00:51]} 48. Rb3 {[%emt 0:01:26]} Re5 {[%emt 0:00:31]} 49. g4 {[%emt 0:00:13]} Bc5 {[%emt 0:00:19]} 50. h5 {[%emt 0:00:38]} Qe8 {[%emt 0:00:11]} 51. Kh4 {[%emt 0:00:19]} Qg8 {[%emt 0:00:46]} 52. Qf4 {[%emt 0:00:23]} Bb6 {[%emt 0:00:43]} 53. Qh6 {[%emt 0:00:18]} Qg7 {[%emt 0:00:26]} 54. Qc1 {[%emt 0:00:26]} Qd7 {[%emt 0:00:39]} 55. h6 {[%emt 0:00:31]} Qd8 {[%emt 0:00:33]} 56. Qc6 {[%emt 0:00:48]} Qf8 {[%emt 0:00:19]} 57. Kh5 {[%emt 0:00:29]} Re3 {[%emt 0:00:40]} 58. g5 {[%emt 0:00:39]} Rxb3 {[%emt 0:00:26]} 59. axb3 {[%emt 0:00:13]} fxg5 {[%emt 0:00:23]} 60. Qc3+ {[%emt 0:00:44]} Kg8 {[%emt 0:00:10]} 61. Kxg5 {[%emt 0:00:14]} Qd8+ {[%emt 0:01:04]} 62. Kh5 {[%emt 0:00:38]} Qd1+ {[%emt 0:00:02]} 63. Kg5 {[%emt 0:00:26]} Qg1+ {[%emt 0:00:34]} 64. Kh5 {[%emt 0:00:36]} Qh2+ {[%emt 0:00:41]} 65. Kg5 {[%emt 0:00:47]} Bd8+ {[%emt 0:00:41]} 66. f6 {[%emt 0:00:15]} Qg2+ {[%emt 0:00:15]} 67. Kf5 {[%emt 0:00:29]} Qg6+ {[%emt 0:00:10]} 68. Ke6 {[%emt 0:00:07]} Qxh6 {[%emt 0:00:44]} 69. Qg3+ {[%emt 0:01:41]} Qg6 {[%emt 0:00:37]} 70. Qe5 {[%emt 0:00:31]} Qxf6+ {[%emt 0:00:16]} 71. Qxf6 {[%emt 0:00:02]} Bxf6 {[%emt 0:00:10]} 72. Kxf6 {[%emt 0:00:02]} Kf8 {[%emt 0:00:19]} 73. b4 {[%emt 0:01:00]} Ke8 {[%emt 0:00:14]} 74. Ke6 {[%emt 0:00:21]} Kd8 {[%emt 0:00:36]} 75. Kd6 {[%emt 0:00:10]} Kc8 {[%emt 0:00:10]} 76. Kc6 {[%emt 0:00:09]} h6 {[%emt 0:00:23]} 77. b5 {[%emt 0:00:04]} h5 {[%emt 0:00:19]} 78. b6 {[%emt 0:00:33]} axb6 {[%emt 0:01:05]} 79. Kxb6 {[%emt 0:00:02]} h4 {[%emt 0:02:21]} 0-1

[Event "1st Regina Cattolica Open 2019"]
[Site "Cattolica"]
[Date "2019.06.15"]
[Round "2.7"]
[White "Gohshtein, Pavel"]
[Black "Dudin, Gleb"]
[Result "1-0"]
[ECO "B06"]
[WhiteElo "2055"]
[BlackElo "2317"]
[Annotator "NA"]
[PlyCount "168"]
[EventDate "2019.06.14"]
[EventType "swiss"]
[EventCountry "ITA"]
[SourceTitle "playchess.com"]
[Source "ChessBase"]
[SourceQuality "1"]
[TimeControl "5400+30"]

1. e4 {[%emt 0:00:00]} g6 {[%emt 0:13:49]} 2. d4 {[%emt 0:00:36]} Bg7 {[%emt 0:00:07]} 3. g3 {[%emt 0:00:45]} d6 {[%emt 0:06:13]} 4. h3 {[%emt 0:02:00]} b6 {[%emt 0:05:46]} 5. Bg2 {[%emt 0:06:39]} Bb7 {[%emt 0:00:07]} 6. Ne2 {[%emt 0:01:01]} e6 {[%emt 0:00:55]} 7. O-O {[%emt 0:03:49]} Ne7 {[%emt 0:00:13]} 8. Be3 {[%emt 0:01:44]} Nd7 {[%emt 0:00:34]} 9. Qd2 {[%emt 0:02:00]} h6 {[%emt 0:03:19]} 10. c4 {[%emt 0:01:49]} Kf8 {[%emt 0:05:03]} 11. Nbc3 {[%emt 0:01:06]} Kg8 {[%emt 0:00:31]} 12. Rae1 {[%emt 0:02:43]} Kh7 {[%emt 0:04:58]} 13. g4 {[%emt 0:01:33]} a6 {[%emt 0:07:01]} 14. Ng3 {[%emt 0:01:52]} b5 {[%emt 0:03:40]} 15. cxb5 {[%emt 0:01:56]} axb5 {[%emt 0:00:09]} 16. a3 {[%emt 0:01:13]} Nb6 {[%emt 0:05:06]} 17. Kh2 {[%emt 0:14:40]} Nc4 {[%emt 0:01:56]} 18. Qc2 {[%emt 0:02:01]} Ba6 {[%emt 0:04:23]} 19. e5 {[%emt 0:09:01]} Rb8 {[%emt 0:20:46]} 20. f4 {[%emt 0:08:08]} b4 {[%emt 0:01:08]} 21. Nce4 {[%emt 0:02:09]} Nxe3 {[%emt 0:01:16]} 22. Rxe3 {[%emt 0:00:04]} Bxf1 {[%emt 0:00:25]} 23. Bxf1 {[%emt 0:00:10]} bxa3 {[%emt 0:01:54]} 24. bxa3 {[%emt 0:00:42]} dxe5 {[%emt 0:01:19]} 25. dxe5 {[%emt 0:01:00]} Qd4 {[%emt 0:00:28]} 26. Re2 {[%emt 0:01:22]} Nd5 {[%emt 0:01:26]} 27. Rd2 {[%emt 0:04:45]} Qe3 $19 {[%emt 0:03:10]} 28. Nh5 {[%emt 0:01:48]} Nxf4 {[%emt 0:06:34]} 29. Rd7 {[%emt 0:07:25]} Nxh5 {[%emt 0:00:41]} 30. Rxf7 {[%emt 0:00:40]} Rhf8 {[%emt 0:01:12]} 31. gxh5 {[%emt 0:01:01]} Rb2 {[%emt 0:00:49]} 32. Nf6+ {[%emt 0:04:53]} Kh8 {[%emt 0:00:01]} 33. Rxf8+ {[%emt 0:00:22]} Bxf8 {[%emt 0:00:00]} 34. Qxb2 {[%emt 0:00:15]} Qf4+ {[%emt 0:00:01]} 35. Kg2 {[%emt 0:01:34]} Kg7 {[%emt 0:01:25]} 36. hxg6 {[%emt 0:00:44]} Qg5+ {[%emt 0:00:51]} 37. Kh1 {[%emt 0:00:47]} Bc5 {[%emt 0:00:24]} 38. Bg2 {[%emt 0:02:17]} Qe3 {[%emt 0:00:35]} 39. Qb1 {[%emt 0:01:10]} Qe2 {[%emt 0:00:43]} 40. Ne4 {[%emt 0:01:08]} Bd4 {[%emt 0:00:29]} 41. Qf1 {[%emt 0:01:10]} Qxf1+ {[%emt 0:00:28]} 42. Bxf1 {[%emt 0:00:03]} Bxe5 {[%emt 0:00:03]} 43. Nc5 {[%emt 0:02:58]} Kxg6 {[%emt 0:01:00]} 44. Nxe6 {[%emt 0:00:34]} Kf5 {[%emt 0:00:14]} 45. Bc4 {[%emt 0:00:41]} c6 {[%emt 0:00:46]} 46. Kg2 {[%emt 0:00:21]} Ke4 {[%emt 0:00:16]} 47. a4 {[%emt 0:00:59]} Bc3 {[%emt 0:00:09]} 48. Kg3 {[%emt 0:00:30]} Ke5 {[%emt 0:00:18]} 49. Kf3 {[%emt 0:00:31]} Ba5 {[%emt 0:00:31]} 50. Kg4 {[%emt 0:01:12]} Bd2 {[%emt 0:01:12]} 51. Kh5 {[%emt 0:00:36]} Ke4 {[%emt 0:00:24]} 52. h4 {[%emt 0:00:32]} Be1 {[%emt 0:00:34]} 53. Ba6 {[%emt 0:01:22]} Kd5 {[%emt 0:00:29]} 54. Nf4+ {[%emt 0:01:12]} Kd4 {[%emt 0:00:37]} 55. Ng6 {[%emt 0:00:35]} Bd2 {[%emt 0:00:31]} 56. Ne7 {[%emt 0:00:53]} c5 {[%emt 0:00:29]} 57. Nf5+ {[%emt 0:00:29]} Kc3 {[%emt 0:00:21]} 58. Nd6 {[%emt 0:00:23]} Kb4 {[%emt 0:00:39]} 59. Bb5 {[%emt 0:00:06]} Be1 {[%emt 0:00:30]} 60. Nc4 {[%emt 0:00:11]} Bf2 {[%emt 0:00:31]} 61. Kg4 {[%emt 0:00:10]} Be1 {[%emt 0:00:11]} 62. h5 {[%emt 0:00:06]} Bf2 {[%emt 0:00:35]} 63. Kf5 {[%emt 0:00:17]} Bg3 {[%emt 0:00:15]} 64. Ke6 {[%emt 0:00:28]} Bh4 {[%emt 0:00:35]} 65. Kd7 {[%emt 0:00:11]} Bg5 {[%emt 0:00:23]} 66. Kc7 {[%emt 0:00:42]} Bh4 {[%emt 0:00:43]} 67. Kb7 {[%emt 0:01:11]} Bg5 {[%emt 0:00:28]} 68. Ne5 {[%emt 0:00:17]} Bh4 {[%emt 0:00:49]} 69. Nd3+ {[%emt 0:00:18]} Ka5 {[%emt 0:00:22]} 70. Nxc5 {[%emt 0:00:12]} Bg5 {[%emt 0:00:04]} 71. Kc6 {[%emt 0:00:23]} Be3 {[%emt 0:00:04]} 72. Ne4 {[%emt 0:00:21]} Bf4 {[%emt 0:00:10]} 73. Kd5 {[%emt 0:00:07]} Kb6 {[%emt 0:00:05]} 74. Ke6 {[%emt 0:00:07]} Be3 {[%emt 0:00:05]} 75. Kf5 {[%emt 0:00:09]} Bc1 {[%emt 0:03:12]} 76. Kg6 {[%emt 0:00:14]} Be3 {[%emt 0:00:30]} 77. Nf6 {[%emt 0:00:12]} Kc5 {[%emt 0:00:00]} 78. Ng4 {[%emt 0:00:08]} Bf4 {[%emt 0:00:00]} 79. Nxh6 {[%emt 0:00:07]} Kd6 {[%emt 0:00:00]} 80. Nf5+ {[%emt 0:00:23]} Ke6 {[%emt 0:00:00]} 81. a5 {[%emt 0:00:17]} Bb8 {[%emt 0:00:00]} 82. h6 {[%emt 0:00:20]} Ke5 {[%emt 0:00:00]} 83. h7 {[%emt 0:00:12]} Kf4 {[%emt 0:00:00]} 84. h8=Q {[%emt 0:00:14]} Ke4 {[%emt 0:04:00]} 1-0

[Event "1st Regina Cattolica Open 2019"]
[Site "Cattolica"]
[Date "2019.06.15"]
[Round "2.8"]
[White "Mezentsev, Ivan"]
[Black "Aimi, Luca"]
[Result "1-0"]
[ECO "A34"]
[WhiteElo "2281"]
[BlackElo "1942"]
[Annotator "ChessBase"]
[PlyCount "49"]
[EventDate "2019.06.14"]
[EventType "swiss"]
[EventCountry "ITA"]
[SourceTitle "playchess.com"]
[Source "ChessBase"]
[SourceQuality "1"]
[TimeControl "5400+30"]

1. Nf3 {[%emt 0:00:00]} e6 {[%emt 0:00:00]} 2. c4 {[%emt 0:00:36]} c5 {[%emt 0:03:49]} 3. Nc3 {[%emt 0:02:05]} Nc6 {[%emt 0:01:38]} 4. e3 {[%emt 0:03:31]} Nf6 {[%emt 0:03:22]} 5. b3 {[%emt 0:01:06]} d5 {[%emt 0:03:44]} 6. cxd5 {[%emt 0:00:15]} exd5 {[%emt 0:00:06]} 7. Bb2 {[%emt 0:00:06]} a6 {[%emt 0:08:05]} 8. Rc1 {[%emt 0:01:55]} Be7 {[%emt 0:02:15]} 9. d4 {[%emt 0:01:05]} O-O {[%emt 0:02:33]} 10. Be2 {[%emt 0:00:28]} b5 {[%emt 0:17:40]} 11. dxc5 {[%emt 0:00:45]} Bxc5 {[%emt 0:00:29]} 12. O-O {[%emt 0:01:33]} Be7 {[%emt 0:07:26]} 13. Bd3 {[%emt 0:05:43]} Bg4 {[%emt 0:03:58]} 14. Nxb5 {[%emt 0:00:56]} axb5 {[%emt 0:00:30]} 15. Rxc6 {[%emt 0:00:08]} Rxa2 {[%emt 0:00:43]} 16. Qb1 {[%emt 0:00:34]} Rxb2 {[%emt 0:09:21]} 17. Qxb2 {[%emt 0:00:19]} Bxf3 {[%emt 0:00:13]} 18. gxf3 {[%emt 0:00:09]} Qd7 {[%emt 0:01:30]} 19. Rfc1 {[%emt 0:01:58]} Qh3 {[%emt 0:03:50]} 20. Qe5 {[%emt 0:02:42]} Ba3 {[%emt 0:11:03]} 21. Ra1 {[%emt 0:00:30]} b4 {[%emt 0:03:51]} 22. Qg3 {[%emt 0:00:39]} Qh6 {[%emt 0:00:52]} 23. h4 {[%emt 0:07:40]} Qh5 {[%emt 0:04:05]} 24. Rxf6 {[%emt 0:00:48]} Bb2 {[%emt 0:00:17]} 25. Rf5 {[%emt 0:00:04]} 1-0

[Event "1st Regina Cattolica Open 2019"]
[Site "Cattolica"]
[Date "2019.06.15"]
[Round "2.9"]
[White "Albertini, Luca"]
[Black "Doric, Senad"]
[Result "1-0"]
[ECO "C42"]
[WhiteElo "2161"]
[BlackElo "2087"]
[Annotator "ChessBase"]
[PlyCount "71"]
[EventDate "2019.06.14"]
[EventType "swiss"]
[EventCountry "ITA"]
[SourceTitle "playchess.com"]
[Source "ChessBase"]
[SourceQuality "1"]
[TimeControl "5400+30"]

1. e4 {[%emt 0:11:42]} e5 {[%emt 0:00:00]} 2. Nf3 {[%emt 0:00:04]} Nf6 {[%emt 0:00:00]} 3. Nxe5 {[%emt 0:00:15]} d6 {[%emt 0:00:00]} 4. Nf3 {[%emt 0:00:11]} Nxe4 {[%emt 0:00:07]} 5. Nc3 {[%emt 0:00:14]} Nf6 {[%emt 0:00:43]} 6. d4 {[%emt 0:00:49]} Be7 {[%emt 0:00:13]} 7. Bf4 {[%emt 0:01:49]} Bg4 {[%emt 0:01:00]} 8. h3 {[%emt 0:00:18]} Bh5 {[%emt 0:00:26]} 9. Bd3 {[%emt 0:05:50]} c6 {[%emt 0:04:20]} 10. Qe2 {[%emt 0:06:35]} O-O {[%emt 0:01:20]} 11. g4 {[%emt 0:00:36]} Bg6 {[%emt 0:00:05]} 12. Bxg6 {[%emt 0:00:09]} hxg6 {[%emt 0:01:46]} 13. O-O-O {[%emt 0:02:14]} d5 {[%emt 0:03:25]} 14. Rdg1 {[%emt 0:04:07]} Bb4 {[%emt 0:01:52]} 15. Nd1 {[%emt 0:03:46]} Bd6 {[%emt 0:02:36]} 16. Be3 {[%emt 0:03:28]} Re8 {[%emt 0:08:34]} 17. h4 {[%emt 0:20:15]} Ne4 {[%emt 0:05:14]} 18. g5 {[%emt 0:05:05]} Nd7 {[%emt 0:08:57]} 19. h5 {[%emt 0:00:40]} Nf8 {[%emt 0:00:35]} 20. h6 {[%emt 0:01:43]} Ne6 {[%emt 0:02:32]} 21. Qf1 {[%emt 0:11:52]} gxh6 {[%emt 0:26:25]} 22. Rxh6 {[%emt 0:03:40]} Kf8 {[%emt 0:00:59]} 23. Qh3 {[%emt 0:01:49]} Ng7 {[%emt 0:04:07]} 24. Rh7 {[%emt 0:03:33]} Nf5 {[%emt 0:03:10]} 25. Nh4 {[%emt 0:00:40]} Nxh4 {[%emt 0:17:16]} 26. Qxh4 {[%emt 0:00:07]} Ke7 {[%emt 0:03:24]} 27. f3 {[%emt 0:00:19]} Ng3 {[%emt 0:00:01]} 28. Rxg3 {[%emt 0:00:08]} Bxg3 {[%emt 0:00:06]} 29. Qxg3 {[%emt 0:00:06]} Rf8 {[%emt 0:01:24]} 30. Nf2 {[%emt 0:03:00]} Qd6 {[%emt 0:00:57]} 31. Bf4 {[%emt 0:01:37]} Qe6 {[%emt 0:00:17]} 32. Be5 {[%emt 0:00:28]} Rac8 {[%emt 0:01:44]} 33. Nd3 {[%emt 0:00:38]} b6 {[%emt 0:00:26]} 34. Kd2 {[%emt 0:02:21]} c5 {[%emt 0:00:49]} 35. Nf4 {[%emt 0:00:15]} Qc6 {[%emt 0:00:13]} 36. Bf6+ {[%emt 0:00:36]} 1-0

[Event "1st Regina Cattolica Open 2019"]
[Site "Cattolica"]
[Date "2019.06.15"]
[Round "2.10"]
[White "Deshpande Abhishek"]
[Black "Casagrande, Federico"]
[Result "1/2-1/2"]
[ECO "B13"]
[WhiteElo "1827"]
[BlackElo "1883"]
[Annotator "NA"]
[PlyCount "107"]
[EventDate "2019.06.14"]
[EventType "swiss"]
[EventCountry "ITA"]
[SourceTitle "playchess.com"]
[Source "ChessBase"]
[SourceQuality "1"]
[TimeControl "5400+30"]

1. e4 {[%emt 0:00:00]} c6 {[%emt 0:05:29]} 2. d4 {[%emt 0:00:00]} d5 {[%emt 0:00:15]} 3. exd5 {[%emt 0:00:00]} cxd5 {[%emt 0:00:08]} 4. Bd3 {[%emt 0:00:11]} Nc6 {[%emt 0:00:30]} 5. c3 {[%emt 0:00:08]} g6 {[%emt 0:00:40]} 6. Bf4 {[%emt 0:00:42]} Bg7 {[%emt 0:00:11]} 7. Nd2 {[%emt 0:01:06]} Nf6 {[%emt 0:00:32]} 8. Ngf3 {[%emt 0:00:19]} O-O {[%emt 0:00:24]} 9. Qc2 {[%emt 0:00:27]} Bd7 {[%emt 0:04:17]} 10. O-O {[%emt 0:00:29]} Rc8 {[%emt 0:03:22]} 11. a3 {[%emt 0:00:09]} Nh5 {[%emt 0:04:28]} 12. Bg3 {[%emt 0:00:35]} Nxg3 {[%emt 0:03:20]} 13. hxg3 {[%emt 0:00:11]} Nxd4 {[%emt 0:06:28]} 14. Nxd4 {[%emt 0:00:21]} Bxd4 {[%emt 0:00:06]} 15. Qb3 {[%emt 0:08:26]} Bb6 {[%emt 0:07:40]} 16. Nf3 {[%emt 0:00:20]} Bc6 {[%emt 0:17:32]} 17. Ne5 {[%emt 0:01:40]} Qd6 {[%emt 0:11:20]} 18. Rfe1 {[%emt 0:03:05]} Qc5 {[%emt 0:03:17]} 19. Re2 {[%emt 0:00:41]} e6 {[%emt 0:00:44]} 20. Rf1 {[%emt 0:02:18]} Bd8 {[%emt 0:06:42]} 21. Qc2 {[%emt 0:01:00]} Bf6 {[%emt 0:02:59]} 22. Ng4 {[%emt 0:04:41]} Bg7 {[%emt 0:00:44]} 23. Qd2 {[%emt 0:00:13]} Bb5 {[%emt 0:01:43]} 24. Bxb5 {[%emt 0:05:12]} Qxb5 {[%emt 0:00:04]} 25. Rfe1 {[%emt 0:00:50]} Rc4 {[%emt 0:02:35]} 26. Ne5 {[%emt 0:03:29]} Rc7 {[%emt 0:01:10]} 27. Qf4 {[%emt 0:02:01]} Rfc8 {[%emt 0:02:21]} 28. g4 {[%emt 0:02:39]} a5 {[%emt 0:06:49]} 29. g5 {[%emt 0:00:32]} Bxe5 {[%emt 0:02:01]} 30. Qxe5 {[%emt 0:02:35]} Qd3 {[%emt 0:00:28]} 31. Re3 {[%emt 0:06:43]} Qf5 {[%emt 0:00:36]} 32. Qg3 {[%emt 0:01:32]} Rc4 {[%emt 0:00:44]} 33. Re5 {[%emt 0:08:57]} Qc2 {[%emt 0:01:00]} 34. R5e2 {[%emt 0:00:39]} Qa4 {[%emt 0:00:30]} 35. Qd6 {[%emt 0:02:05]} Qc6 {[%emt 0:03:45]} 36. Qh2 {[%emt 0:04:19]} Rg4 {[%emt 0:01:01]} 37. f4 {[%emt 0:01:52]} Qb6+ {[%emt 0:01:18]} 38. Kh1 {[%emt 0:00:34]} Rc4 {[%emt 0:00:29]} 39. g3 {[%emt 0:00:37]} Re4 {[%emt 0:00:47]} 40. Qh3 {[%emt 0:02:40]} Rxe2 {[%emt 0:00:24]} 41. Rxe2 {[%emt 0:00:09]} h5 {[%emt 0:00:08]} 42. gxh6 {[%emt 0:00:17]} f5 {[%emt 0:00:05]} 43. h7+ {[%emt 0:00:35]} Kh8 {[%emt 0:00:12]} 44. Qh6 {[%emt 0:03:31]} Qd6 {[%emt 0:00:59]} 45. Kh2 {[%emt 0:01:22]} b5 {[%emt 0:00:37]} 46. Re1 {[%emt 0:02:38]} Qe7 {[%emt 0:01:00]} 47. Kg2 {[%emt 0:01:07]} Qd6 {[%emt 0:00:34]} 48. a4 {[%emt 0:01:04]} bxa4 {[%emt 0:00:41]} 49. Ra1 {[%emt 0:00:22]} d4 {[%emt 0:00:32]} 50. cxd4 {[%emt 0:01:01]} Qd5+ {[%emt 0:00:18]} 51. Kh3 {[%emt 0:00:30]} Qxd4 {[%emt 0:00:23]} 52. Ra3 {[%emt 0:06:43]} Qe4 {[%emt 0:00:46]} 53. Qf8+ {[%emt 0:00:37]} Kxh7 {[%emt 0:00:05]} 54. Qf7+ {[%emt 0:00:07]} 1/2-1/2

[Event "1st Regina Cattolica Open 2019"]
[Site "Cattolica"]
[Date "2019.06.15"]
[Round "2.11"]
[White "Paduano, Claudio"]
[Black "Malfagia, Andrea"]
[Result "0-1"]
[ECO "A53"]
[WhiteElo "1959"]
[BlackElo "2191"]
[Annotator "NA"]
[PlyCount "148"]
[EventDate "2019.06.14"]
[EventType "swiss"]
[EventCountry "ITA"]
[SourceTitle "playchess.com"]
[Source "ChessBase"]
[SourceQuality "1"]
[TimeControl "5400+30"]

1. d4 {[%emt 0:04:49]} Nf6 {[%emt 0:00:00]} 2. c4 {[%emt 0:00:09]} d6 {[%emt 0:00:04]} 3. Nc3 {[%emt 0:00:40]} Nbd7 {[%emt 0:00:06]} 4. e4 {[%emt 0:01:48]} e5 {[%emt 0:00:08]} 5. d5 {[%emt 0:03:11]} Nc5 {[%emt 0:04:15]} 6. f3 {[%emt 0:09:13]} a5 {[%emt 0:00:48]} 7. Be3 {[%emt 0:06:30]} Nfd7 {[%emt 0:00:11]} 8. Nh3 {[%emt 0:10:36]} Be7 {[%emt 0:06:37]} 9. Qd2 {[%emt 0:05:23]} h6 $14 {[%emt 0:02:34]} 10. b3 {[%emt 0:07:58]} Nf8 {[%emt 0:02:43]} 11. g3 {[%emt 0:14:38]} Bxh3 {[%emt 0:14:08]} 12. Bxh3 {[%emt 0:00:40]} Bg5 {[%emt 0:00:05]} 13. Nd1 {[%emt 0:13:45]} Ng6 {[%emt 0:16:41]} 14. O-O {[%emt 0:13:04]} O-O {[%emt 0:11:05]} 15. Bf5 {[%emt 0:03:38]} Bxe3+ {[%emt 0:04:41]} 16. Nxe3 {[%emt 0:00:19]} Qg5 {[%emt 0:00:27]} 17. Kh1 {[%emt 0:01:31]} Ne7 {[%emt 0:00:54]} 18. Bh3 {[%emt 0:00:34]} g6 {[%emt 0:04:23]} 19. Bg2 {[%emt 0:00:32]} f5 {[%emt 0:02:07]} 20. f4 {[%emt 0:00:29]} exf4 {[%emt 0:00:29]} 21. gxf4 {[%emt 0:00:14]} Qf6 {[%emt 0:00:32]} 22. exf5 {[%emt 0:00:43]} gxf5 {[%emt 0:00:27]} 23. Rae1 {[%emt 0:00:29]} Ng6 {[%emt 0:01:27]} 24. Bh3 {[%emt 0:00:34]} Nh4 {[%emt 0:00:09]} 25. Qe2 {[%emt 0:01:03]} Rae8 {[%emt 0:16:00]} 26. Qh5 {[%emt 0:00:00]} Nd3 {[%emt 0:00:08]} 27. Re2 {[%emt 0:00:28]} Kh7 {[%emt 0:05:15]} 28. Ng4 {[%emt 0:00:30]} fxg4 {[%emt 0:00:23]} 29. Rxe8 {[%emt 0:00:27]} Rxe8 {[%emt 0:01:36]} 30. Qxe8 {[%emt 0:00:18]} gxh3 {[%emt 0:00:37]} 31. Qd7+ {[%emt 0:00:45]} Kg6 {[%emt 0:05:54]} 32. Qxh3 {[%emt 0:00:28]} Qf5 {[%emt 0:00:33]} 33. Rg1+ {[%emt 0:00:31]} Kf7 {[%emt 0:00:09]} 34. Qxh4 {[%emt 0:00:30]} Qe4+ {[%emt 0:00:11]} 35. Rg2 {[%emt 0:00:07]} Nxf4 {[%emt 0:00:08]} 36. Qf2 {[%emt 0:00:53]} Kf6 {[%emt 0:01:13]} 37. Qb2+ {[%emt 0:00:31]} Kf5 {[%emt 0:00:20]} 38. Qf2 {[%emt 0:00:30]} Qxg2+ {[%emt 0:00:50]} 39. Qxg2 {[%emt 0:00:01]} Nxg2 {[%emt 0:00:02]} 40. Kxg2 {[%emt 0:00:01]} Kg4 {[%emt 0:01:03]} 41. Kf2 {[%emt 0:01:13]} Kh3 {[%emt 0:00:12]} 42. Kg1 {[%emt 0:00:43]} h5 {[%emt 0:00:07]} 43. Kh1 {[%emt 0:00:31]} Kh4 {[%emt 0:00:39]} 44. Kg2 {[%emt 0:00:17]} Kg4 {[%emt 0:00:05]} 45. a3 {[%emt 0:00:44]} h4 {[%emt 0:00:54]} 46. b4 {[%emt 0:00:30]} a4 {[%emt 0:00:34]} 47. c5 {[%emt 0:00:30]} b6 {[%emt 0:00:40]} 48. c6 {[%emt 0:00:30]} b5 {[%emt 0:00:25]} 49. Kf2 {[%emt 0:00:30]} Kf4 {[%emt 0:00:20]} 50. Kg2 {[%emt 0:00:13]} Kg4 {[%emt 0:00:46]} 51. Kf2 {[%emt 0:00:29]} Kf4 {[%emt 0:00:39]} 52. Kg2 {[%emt 0:00:09]} Ke5 {[%emt 0:00:28]} 53. Kh3 {[%emt 0:00:10]} Kxd5 {[%emt 0:00:13]} 54. Kxh4 {[%emt 0:00:06]} Kxc6 {[%emt 0:00:45]} 55. Kg5 {[%emt 0:01:49]} Kd7 {[%emt 0:00:16]} 56. h4 {[%emt 0:00:34]} c5 {[%emt 0:00:11]} 57. h5 {[%emt 0:00:31]} cxb4 {[%emt 0:01:12]} 58. h6 {[%emt 0:00:24]} b3 {[%emt 0:00:04]} 59. h7 {[%emt 0:00:07]} b2 {[%emt 0:00:05]} 60. h8=Q {[%emt 0:00:09]} b1=Q {[%emt 0:00:07]} 61. Qg7+ {[%emt 0:00:36]} Kc6 {[%emt 0:00:42]} 62. Qc3+ {[%emt 0:00:50]} Kb7 {[%emt 0:01:06]} 63. Qf3+ {[%emt 0:00:53]} Kb6 {[%emt 0:00:22]} 64. Qe3+ {[%emt 0:00:27]} Ka6 {[%emt 0:00:15]} 65. Qd4 {[%emt 0:00:32]} Qc1+ {[%emt 0:00:10]} 66. Kf6 {[%emt 0:00:30]} Qxa3 {[%emt 0:00:15]} 67. Ke7 {[%emt 0:00:31]} Qc5 {[%emt 0:00:15]} 68. Qg4 {[%emt 0:00:30]} a3 {[%emt 0:00:33]} 69. Kd7 {[%emt 0:00:30]} b4 {[%emt 0:00:57]} 70. Qe4 {[%emt 0:00:31]} d5 {[%emt 0:00:41]} 71. Qg6+ {[%emt 0:00:30]} Qb6 {[%emt 0:00:13]} 72. Qg8 {[%emt 0:00:30]} a2 {[%emt 0:00:48]} 73. Qh8 {[%emt 0:00:29]} d4 {[%emt 0:00:16]} 74. Qh1 {[%emt 0:00:31]} Qb7+ {[%emt 0:02:22]} 0-1